bitfinex-derivatives/quotes_SOLF0:USTF0_20251230
["timestamp","ask_amount","ask_price","bid_price","bid_amount"]
[1767067016518,0.05607388,123.93,123.9,0.00332505]
[1767067017517,0.05607388,123.93,123.9,95.40332505]
[1767067019416,3.29607388,123.93,123.9,95.40332505]
[1767067020313,3.29607388,123.93,123.9,0.00332505]
[1767067020910,0.05607388,123.93,123.9,0.00332505]
[1767067029023,3.24,123.96,123.9,0.00332505]
[1767067029224,3.24,123.96,123.89,7.2736]
[1767067029927,0.05211333,123.94,123.91,0.05121984]
[1767067031127,3.29211333,123.94,123.91,0.05121984]
[1767067033628,3.29211333,123.94,123.88,7.40670341]
[1767067033820,3.29211333,123.94,123.87,102.80670341]
[1767067034618,3.29211333,123.94,123.89,0.05379454]
[1767067045140,3.4,123.93,123.86,7.05670341]
[1767067045538,3.4,123.93,123.85,7.2758]
[1767067046238,0.06143129,123.9,123.88,0.05780835]
[1767067046442,0.05575029,123.9,123.88,0.05780835]
[1767067047034,3.45575029,123.9,123.85,7.2758]
[1767067048047,3.45575029,123.9,123.86,0.05386559]
[1767067049542,3.4,123.92,123.86,3.22344632]
[1767067049746,3.4,123.92,123.88,3.16958073]
[1767067050440,3.4,123.92,123.87,95.4]
[1767067050634,0.05642981,123.91,123.88,0.0536979]
[1767067057154,3.45642981,123.91,123.88,0.0536979]
[1767067067061,3.45642981,123.91,123.88,0.0036979]
[1767067072457,2.981e-05,123.91,123.88,2.03240215]
[1767067073450,0.05917157,123.91,123.88,2.03240215]
[1767067078665,3.36,123.9,123.84,9.91486799]
[1767067078861,3.36,123.9,123.85,2.02870425]
[1767067079764,0.05332537,123.89,123.86,0.05683852]
[1767067080359,0.05332537,123.89,123.86,3.39683852]
[1767067080565,0.05332537,123.89,123.87,2.02870425]
[1767067080766,0.05332537,123.89,123.86,3.39683852]
[1767067084778,0.05332537,123.89,123.87,2.02870425]
[1767067085067,7.271,123.94,123.87,2.02870425]
[1767067086067,0.05387649,123.92,123.89,0.05369149]
[1767067086570,0.05387649,123.92,123.89,0.00369149]
[1767067091177,0.05387649,123.92,123.85,2.02870425]
[1767067091378,9.30030425,123.93,123.85,5.36870425]
[1767067091570,2.02870425,123.93,123.84,108.06500425]
[1767067091770,97.44870425,123.93,123.84,108.06500425]
[1767067092170,0.05747947,123.9,123.87,0.05215025]
[1767067097476,0.05747947,123.9,123.83,281.47265509]
[1767067097778,0.05747947,123.9,123.82,5.52870425]
[1767067097977,97.44870425,123.91,123.83,3.5]
[1767067098481,0.0575977,123.88,123.86,0.0566592]
[1767067099694,0.0575977,123.88,123.83,3.5]
[1767067100676,0.0575977,123.88,123.81,100.94870425]
[1767067101180,0.0575977,123.88,123.8,2.02870425]
[1767067101374,95.44,123.87,123.8,5.52870425]
[1767067101869,0.05992373,123.85,123.82,0.06190338]
[1767067103580,127.6428,123.95,123.82,3.56190338]
[1767067103787,95.44,123.89,123.82,5.52870425]
[1767067104188,95.44,123.89,123.82,3.5]
[1767067104386,95.44,123.89,123.82,5.52870425]
[1767067104585,0.05563735,123.87,123.84,0.05784178]
[1767067106590,0.05563735,123.87,123.8,2.02870425]
[1767067106791,2.02870425,123.88,123.8,5.52870425]
[1767067107591,0.06116311,123.85,123.83,0.05585413]
[1767067107781,0.06116311,123.85,123.8,5.52870425]
[1767067108396,0.06116311,123.85,123.8,3.5]
[1767067108692,0.06116311,123.85,123.81,0.05124423]
[1767067108888,2.02870425,123.84,123.78,3.5]
[1767067109097,2.02870425,123.84,123.77,3.5]
[1767067109287,95.44,123.85,123.78,2.02870425]
[1767067109288,97.46870425,123.85,123.78,2.02870425]
[1767067109488,2.02870425,123.86,123.78,2.02870425]
[1767067109688,95.44,123.85,123.78,2.02870425]
[1767067110199,0.06072934,123.83,123.8,0.05455648]
[1767067111587,2.08943359,123.83,123.77,3.5]
[1767067111996,2.08943359,123.83,123.75,5.52870425]
[1767067112295,9.30560425,123.84,123.76,3.5]
[1767067112591,0.05764379,123.81,123.79,0.05511764]
[1767067126209,0.05764379,123.81,123.75,3.21]
[1767067127408,0.05764379,123.81,123.77,0.05125378]
[1767067132309,0.05764379,123.81,123.77,3.26125378]
[1767067144931,0.05764379,123.81,123.77,0.05125378]
[1767067148521,0.05764379,123.81,123.77,3.24125378]
[1767067148728,95.5,123.86,123.77,3.24125378]
[1767067148927,95.5,123.86,123.77,3.19]
[1767067149128,3.17575882,123.87,123.77,3.19]
[1767067149338,102.7759,123.86,123.78,3.19]
[1767067149726,0.06096333,123.83,123.81,0.060063]
[1767067155737,0.06096333,123.83,123.79,3.19]
[1767067156734,0.06096333,123.83,123.8,0.05868487]
[1767067158242,95.56096333,123.83,123.77,3.23]
[1767067163845,0.06096333,123.83,123.77,3.23]
[1767067164145,95.56096333,123.83,123.77,3.23]
[1767067166038,0.06096333,123.83,123.77,3.23]
[1767067166237,0.06096333,123.83,123.78,3.23]
[1767067186758,2.0934314,123.83,123.78,3.23]
[1767067197457,0.06096333,123.83,123.78,3.23]
[1767067197658,2.0934314,123.83,123.78,3.23]
[1767067200659,0.06096333,123.83,123.78,3.23]
[1767067201059,2.0934314,123.83,123.78,3.23]
[1767067201354,0.06096333,123.83,123.78,3.21]
[1767067201866,2.0934314,123.83,123.78,3.21]
[1767067202068,0.06096333,123.83,123.78,3.21]
[1767067203267,0.00096333,123.83,123.78,10.49]
[1767067203473,2.03246807,123.87,123.8,3.21]
[1767067203667,113.1367,123.91,123.8,3.21]
[1767067203869,7.2735,123.9,123.83,3.21]
[1767067204170,9.30596807,123.9,123.83,3.21]
[1767067204370,0.06029718,123.88,123.85,0.05960417]
[1767067204969,2.03246807,123.87,123.85,0.05960417]
[1767067205873,0.06029718,123.88,123.85,0.05960417]
[1767067207074,2.09276525,123.88,123.85,0.05960417]
[1767067207274,0.06029718,123.88,123.85,0.05960417]
[1767067209877,7.33489718,123.88,123.85,0.05960417]
[1767067210086,2.03246807,123.87,123.81,3.21]
[1767067210292,2.03246807,123.85,123.81,3.21]
[1767067210493,208.6508,123.87,123.79,3.21]
[1767067210788,2.03246807,123.84,123.79,3.21]
[1767067210989,0.05893106,123.83,123.79,3.21]
[1767067224599,7.2759,123.86,123.79,3.21]
[1767067224995,9.30836807,123.86,123.79,3.21]
[1767067225703,0.05606578,123.84,123.81,0.05887501]
[1767067229504,0.05606578,123.84,123.81,3.34887501]
[1767067230508,0.05606578,123.84,123.81,0.05887501]
[1767067236801,0.05606578,123.84,123.81,3.34887501]
[1767067238217,0.05606578,123.84,123.81,0.05887501]
[1767067239713,7.2754,123.87,123.81,3.34887501]
[1767067240406,102.7554,123.87,123.81,3.34887501]
[1767067240915,0.05832885,123.85,123.81,3.34887501]
[1767067242117,0.05832885,123.85,123.81,0.05887501]
[1767067242317,2.09079692,123.85,123.81,0.05887501]
[1767067242819,102.81452885,123.85,123.8,3.29]
[1767067243210,2.03246807,123.84,123.8,3.29]
[1767067243913,102.81452885,123.85,123.81,0.05388863]
[1767067244119,104.84699692,123.85,123.81,0.05388863]
[1767067248619,102.81452885,123.85,123.81,0.05388863]
[1767067256816,102.81452885,123.85,123.81,0.00388863]
[1767067258514,3.17514456,123.84,123.78,10.89868461]
[1767067258719,3.17514456,123.84,123.78,3.47]
[1767067258920,95.48,123.83,123.78,3.47]
[1767067259432,0.05541631,123.82,123.78,3.47]
[1767067259921,113.1443,123.9,123.8,3.47]
[1767067260129,98.65514456,123.91,123.82,3.47]
[1767067260331,4.16137759,123.92,123.84,3.47]
[1767067260525,4.16137759,123.92,123.85,3.47]
[1767067260725,95.48,123.94,123.87,3.47]
[1767067260927,0.06182239,123.92,123.89,0.05900867]
[1767067262225,7.33402239,123.92,123.85,10.89868461]
[1767067262430,7.33402239,123.92,123.85,3.47]
[1767067262622,95.48,123.91,123.85,3.47]
[1767067263236,0.05541643,123.89,123.85,3.47]
[1767067268732,113.0886,123.96,123.85,3.47]
[1767067268928,95.46,123.95,123.86,3.47]
[1767067269529,113.0886,123.96,123.86,3.47]
[1767067269730,0.05422625,123.92,123.9,0.05541643]
[1767067277345,0.00422625,123.92,123.9,0.05541643]
[1767067278146,7.27642625,123.92,123.86,3.52]
[1767067278346,7.2722,123.92,123.86,3.52]
[1767067279147,0.05732121,123.9,123.88,0.05]
[1767067284354,95.44,123.93,123.88,0.05]
[1767067284547,95.44,123.93,123.88,3.57]
[1767067284747,7.2712,123.94,123.88,3.57]
[1767067285357,0.05389241,123.92,123.88,3.57]
[1767067297265,0.00389241,123.92,123.88,3.57]
[1767067297453,7.2701,123.96,123.88,3.57]
[1767067297654,7.2701,123.96,123.88,3.52]
[1767067298566,0.05345559,123.93,123.91,0.05728498]
[1767067304869,0.00345559,123.93,123.91,3.57728498]
[1767067305266,0.00345559,123.93,123.91,8.498e-05]
[1767067305878,0.00345559,123.93,123.88,7.3930521]
[1767067306373,0.00345559,123.93,123.89,0.05708767]
[1767067307373,0.00345559,123.93,123.9,3.27]
[1767067311374,12.53357403,123.93,123.89,0.05708767]
[1767067316281,5.26207403,123.93,123.89,0.05708767]
[1767067319779,10.5093,123.97,123.9,3.4]
[1767067319974,2.02861844,123.96,123.9,3.4]
[1767067320682,10.5093,123.97,123.9,3.4]
[1767067320872,0.05456384,123.95,123.92,0.06079257]
[1767067324273,0.05456384,123.95,123.92,3.46079257]
[1767067329088,5.32318228,123.95,123.9,3.4]
[1767067329382,0.05456384,123.95,123.9,3.4]
[1767067330289,0.05456384,123.95,123.91,3.45197416]
[1767067331989,24.28,124.02,123.91,3.45197416]
[1767067332188,12.53671844,123.99,123.92,3.4]
[1767067332687,10.5087,123.98,123.92,3.4]
[1767067333186,0.06170881,123.96,123.94,0.05145647]
[1767067334389,3.30170881,123.96,123.94,0.00145647]
[1767067334989,0.06170881,123.96,123.94,0.00145647]
[1767067351495,2.02861844,124.0,123.94,3.48145647]
[1767067351694,3.25,124.01,123.94,3.48145647]
[1767067351695,5.27861844,124.01,123.94,3.48145647]
[1767067351891,3.25,124.01,123.94,3.48145647]
[1767067352701,0.05512392,123.99,123.94,3.48145647]
[1767067353302,0.05512392,123.99,123.95,3.48]
[1767067362315,2.02861844,124.01,123.95,3.48]
[1767067362816,7.2663,124.02,123.95,3.48]
[1767067363216,0.0522531,124.0,123.97,3.53462855]
[1767067370716,0.0522531,124.0,123.97,0.05462855]
[1767067380335,0.0522531,124.0,123.97,3.24462855]
[1767067381725,0.0022531,124.0,123.97,3.24462855]
[1767067385135,3.41,124.03,123.97,3.24462855]
[1767067386138,0.05325065,124.01,123.97,3.24462855]
[1767067387532,3.46325065,124.01,123.97,0.05462855]
[1767067393342,10.73025065,124.01,123.97,0.05462855]
[1767067393640,3.41,124.0,123.97,0.05462855]
[1767067405954,3.41,124.0,123.97,0.00462855]
[1767067419467,3.41,124.0,123.94,10.80151205]
[1767067420674,0.05816904,123.98,123.96,0.06230789]
[1767067438579,0.05816904,123.98,123.96,7.48381994]
[1767067439980,0.05816904,123.98,123.96,0.06230789]
[1767067448579,0.05816904,123.98,123.96,3.44230789]
[1767067448979,0.05816904,123.98,123.96,10.86381994]
[1767067449182,3.19,124.01,123.96,10.86381994]
[1767067450087,0.05926066,124.0,123.96,3.44230789]
[1767067450986,3.24926066,124.0,123.96,0.06230789]
[1767067471802,3.24926066,124.0,123.96,0.00230789]
[1767067474399,3.27,123.99,123.96,0.00230789]
[1767067475193,1.58,123.98,123.91,2.87486799]
[1767067475406,2.02656574,123.97,123.89,3.28]
[1767067475597,2.02656574,123.97,123.9,2.02656574]
[1767067475799,2.02656574,123.97,123.9,3.28]
[1767067476000,2.02656574,123.97,123.9,5.30656574]
[1767067476302,0.05119905,123.95,123.92,0.05464779]
[1767067479011,0.05119905,123.95,123.92,0.00464779]
[1767067479408,2.07776479,123.95,123.92,0.00464779]
[1767067479802,2.07776479,123.95,123.88,5.30656574]
[1767067480005,2.07776479,123.95,123.89,3.28]
[1767067480211,0.05119905,123.95,123.89,3.28]
[1767067480814,0.05119905,123.95,123.91,0.05988876]
[1767067482912,0.05119905,123.95,123.91,3.33988876]
[1767067487119,0.05119905,123.95,123.91,0.05988876]
[1767067490827,0.05119905,123.95,123.91,3.25988876]
[1767067499242,7.2678,124.0,123.91,3.25988876]
[1767067499538,102.6678,124.0,123.91,3.2]
[1767067499931,7.2678,124.0,123.92,3.33]
[1767067500439,0.05744105,123.97,123.95,0.05775337]
[1767067503448,0.05744105,123.97,123.9,98.73]
[1767067504338,0.05744105,123.97,123.92,0.05402437]
[1767067504531,7.32674105,123.97,123.92,0.05402437]
[1767067510448,7.2698,123.96,123.92,0.05402437]
[1767067512147,7.2688,123.98,123.92,3.38402437]
[1767067513249,0.05839982,123.96,123.92,3.38402437]
[1767067519556,7.2666,124.02,123.92,3.38402437]
[1767067519857,6.09977024,124.01,123.92,3.33]
[1767067520659,0.0572896,123.98,123.95,0.05163399]
[1767067527264,0.0572896,123.98,123.95,0.00163399]
[1767067527462,211.67626266,123.98,123.91,3.37]
[1767067528355,211.67626266,123.98,123.93,0.05959197]
[1767067528554,7.2699,123.96,123.93,0.05959197]
[1767067530966,116.25577306,123.96,123.87,3.37]
[1767067531259,3.16877306,123.94,123.87,3.37]
[1767067531960,0.05456412,123.92,123.89,3.42733362]
[1767067534165,0.05456412,123.92,123.87,3.37]
[1767067534465,3.16877306,123.92,123.87,3.37]
[1767067535156,0.05106556,123.91,123.88,0.05256126]
[1767067552377,0.05106556,123.91,123.88,3.35256126]
[1767067558173,0.05106556,123.91,123.88,0.05256126]
[1767067558380,2.0297527,123.9,123.86,3.3]
[1767067559480,0.00106556,123.91,123.87,3.44499185]
[1767067559683,2.0297527,123.92,123.87,3.44499185]
[1767067559984,95.42,123.94,123.87,3.44499185]
[1767067560166,2.0297527,123.93,123.87,3.44499185]
[1767067560575,0.06129906,123.91,123.87,3.44499185]
[1767067564186,7.2699,123.96,123.88,3.4]
[1767067564483,137.3129,123.99,123.9,3.4]
[1767067564484,97.4497527,123.97,123.9,3.4]
[1767067564683,2.0297527,123.97,123.9,3.4]
[1767067565087,97.4497527,123.97,123.9,3.4]
[1767067565278,0.05470222,123.95,123.92,0.05309251]
[1767067570991,0.05470222,123.95,123.92,3.45309251]
[1767067571189,9.2973527,124.0,123.92,3.45309251]
[1767067571384,104.7173527,124.0,123.92,3.4]
[1767067571693,7.2676,124.0,123.92,3.4]
[1767067571998,102.6876,124.0,123.94,3.4]
[1767067572290,0.06088446,123.98,123.96,0.05637947]
[1767067584402,0.06088446,123.98,123.9,2.0297527]
[1767067584606,9.2978527,123.99,123.9,2.0297527]
[1767067585200,9.2967527,124.01,123.92,2.0297527]
[1767067585410,0.00405223,123.96,123.93,0.05890188]
[1767067585708,0.00405223,123.96,123.92,2.0297527]
[1767067586112,0.00405223,123.96,123.93,2.0297527]
[1767067586313,104.6767527,124.01,123.94,3.24]
[1767067587314,2.08594365,123.99,123.94,3.24]
[1767067588216,2.08594365,123.99,123.95,0.05643421]
[1767067589015,9.35414365,123.99,123.95,0.05643421]
[1767067591421,2.0297527,123.97,123.95,0.05643421]
[1767067591612,2.0297527,123.97,123.92,3.24]
[1767067592621,0.05607481,123.96,123.93,0.05581869]
[1767067594128,0.05607481,123.96,123.88,10.514]
[1767067594318,7.2707,123.95,123.88,3.24]
[1767067594623,2.0297527,123.93,123.88,3.24]
[1767067595011,97.4097527,123.95,123.88,3.24]
[1767067595211,0.05685007,123.93,123.9,3.28150402]
[1767067595414,2.0297527,123.95,123.9,3.28150402]
[1767067596422,0.06189093,123.94,123.9,3.28150402]
[1767067623564,7.33289093,123.94,123.9,3.28150402]
[1767067623965,10.50275596,123.94,123.9,3.28150402]
[1767067632779,7.2718,123.93,123.88,3.19]
[1767067633878,7.2718,123.93,123.89,0.05685007]
[1767067637382,3.16986503,123.92,123.86,10.77300836]
[1767067638082,3.16986503,123.92,123.87,3.31]
[1767067638474,0.05376013,123.91,123.87,3.31]
[1767067642889,7.32666013,123.91,123.85,3.31]
[1767067643092,0.05592714,123.89,123.85,3.31]
[1767067648216,7.33022714,123.89,123.82,3.31]
[1767067648496,0.05208987,123.87,123.82,3.31]
[1767067648795,98.58986503,123.9,123.82,3.31]
[1767067649189,3.16986503,123.9,123.82,3.31]
[1767067649894,0.05223352,123.87,123.85,0.05208987]
[1767067650395,0.05223352,123.87,123.83,3.31]
[1767067651298,0.05223352,123.87,123.81,3.31]
[1767067651594,0.05259134,123.85,123.81,3.31]
[1767067667008,0.00259134,123.85,123.83,3.26]
[1767067667205,7.2753,123.87,123.83,3.26]
[1767067667412,102.734,123.89,123.83,3.26]
[1767067667910,7.274,123.89,123.83,3.26]
[1767067668113,0.00137192,123.87,123.85,3.31]
[1767067682021,3.74477192,123.9,123.85,3.31]
[1767067683225,0.0558537,123.89,123.85,3.31]
[1767067688723,7.3297537,123.89,123.85,3.31]
[1767067694341,0.0558537,123.89,123.85,3.31]
[1767067705446,7.3297537,123.89,123.85,3.31]
[1767067723072,7.2744,123.88,123.85,3.31]
[1767067723869,0.0558537,123.89,123.85,3.31]
[1767067724967,0.0558537,123.89,123.84,3.93300836]
[1767067725173,9.30572817,123.86,123.81,3.45]
[1767067725563,7.2758,123.86,123.81,3.45]
[1767067726066,0.05951882,123.85,123.82,0.0525229]
[1767067728077,0.05951882,123.85,123.82,3.5525229]
[1767067732870,113.1437,123.9,123.82,3.5525229]
[1767067732871,7.2734,123.9,123.82,3.5525229]
[1767067733067,9.30332817,123.9,123.83,3.5]
[1767067733679,104.76332817,123.9,123.83,3.5]
[1767067733877,0.0538003,123.88,123.85,0.05445217]
[1767067734076,0.0538003,123.88,123.85,3.55445217]
[1767067739485,7.26427452,123.88,123.85,3.55445217]
[1767067745286,0.0538003,123.88,123.85,3.55445217]
[1767067761703,0.0038003,123.88,123.85,3.55445217]
[1767067788123,11.39774572,123.95,123.86,3.35]
[1767067788333,4.12704572,123.95,123.86,3.35]
[1767067788820,3.17212156,123.96,123.88,3.35]
[1767067789219,3.17212156,123.96,123.87,105.36196113]
[1767067789220,0.05563957,123.93,123.91,3.40613235]
[1767067789417,3.17212156,123.96,123.91,3.40613235]
[1767067790517,0.05900821,123.95,123.91,3.40613235]
[1767067800028,7.2721,123.92,123.88,3.51]
[1767067800227,10.44422156,123.92,123.81,242.83286113]
[1767067800427,10.44422156,123.92,123.81,218.56286113]
[1767067800633,10.44422156,123.92,123.82,2.03015397]
[1767067800634,0.00015397,123.89,123.82,2.03015397]
[1767067801329,0.00030235,123.87,123.84,0.06036925]
[1767067802133,0.00030235,123.87,123.85,3.51]
[1767067804437,7.2728,123.91,123.85,3.51]
[1767067804632,9.30295397,123.91,123.85,3.51]
[1767067804830,2.03015397,123.94,123.87,3.51]
[1767067805031,2.03015397,123.96,123.89,3.51]
[1767067805435,0.05134718,123.94,123.91,3.56939971]
[1767067832870,0.00134718,123.94,123.91,3.56939971]
[1767067851882,2.03015397,123.96,123.91,3.56939971]
[1767067852181,97.43015397,123.96,123.91,3.56939971]
[1767067852882,0.06057184,123.95,123.91,3.56939971]
[1767067853089,0.00057184,123.95,123.91,3.56939971]
[1767067855193,2.03015397,123.94,123.91,9.971e-05]
[1767067855783,2.03015397,123.94,123.88,7.52492393]
[1767067856187,0.05940121,123.92,123.9,0.05300532]
[1767067856485,2.03015397,123.94,123.9,0.05300532]
[1767067857290,0.06018001,123.93,123.9,0.05300532]
[1767067857789,0.06018001,123.93,123.9,3.36300532]
[1767067861293,2.03015397,123.92,123.88,7.52492393]
[1767067862286,2.03015397,123.92,123.89,0.06191434]
[1767067862489,0.06018001,123.93,123.89,0.06191434]
[1767067863194,0.06018001,123.93,123.89,3.35191434]
[1767067864193,0.00018001,123.93,123.89,10.87683827]
[1767067864595,0.00018001,123.93,123.9,3.29]
[1767067900730,0.00018001,123.93,123.89,7.58683827]
[1767067900929,0.00018001,123.93,123.89,0.06191434]
[1767067902220,0.00018001,123.93,123.89,3.37191434]
[1767067917944,3.47018001,123.93,123.89,3.37191434]
[1767067919135,98.87018001,123.93,123.89,3.37191434]
[1767067921045,102.04110853,123.93,123.89,3.37191434]
[1767067921442,98.87018001,123.93,123.89,3.37191434]
[1767067922541,100.89952053,123.93,123.89,3.37191434]
[1767067923546,98.87018001,123.93,123.89,3.37191434]
[1767067923739,100.89952053,123.93,123.89,3.37191434]
[1767067928250,5.49952053,123.93,123.89,3.37191434]
[1767067928444,0.00018001,123.93,123.89,3.37191434]
[1767067928646,95.40018001,123.93,123.89,3.37191434]
[1767067932650,97.42952053,123.93,123.89,3.37191434]
[1767067939055,3.32,123.92,123.89,0.06191434]
[1767067939557,3.32,123.92,123.87,3.21]
[1767067940553,3.32,123.92,123.88,0.05678651]
[1767067944152,2.02934052,123.91,123.88,0.05678651]
[1767067949560,3.32,123.9,123.85,3.21]
[1767067949767,2.02934052,123.89,123.85,3.21]
[1767067949968,97.44934052,123.89,123.85,3.21]
[1767067950663,0.06210492,123.88,123.86,0.05977093]
[1767067951667,5.41144544,123.88,123.83,3.21]
[1767067952670,5.41144544,123.88,123.84,0.06160566]
[1767067955865,5.34934052,123.87,123.84,0.06160566]
[1767067957064,2.02934052,123.85,123.81,3.21]
[1767067957270,3.32,123.86,123.81,3.21]
[1767067957570,2.02934052,123.85,123.81,3.21]
[1767067958072,0.05455094,123.84,123.82,0.05901359]
[1767067959574,3.37455094,123.84,123.79,3.21]
[1767067959770,5.40389146,123.84,123.79,3.21]
[1767067959974,100.84389146,123.84,123.79,3.21]
[1767067960563,100.84389146,123.84,123.8,0.05375294]
[1767067960777,3.32,123.83,123.75,13.35713505]
[1767067960973,5.34934052,123.82,123.75,11.32779453]
[1767067961274,5.34934052,123.82,123.71,2.02934052]
[1767067961275,5.34934052,123.79,123.71,2.02934052]
[1767067961673,5.34934052,123.79,123.71,3.43579891]
[1767067961877,0.00112948,123.76,123.71,3.43579891]
[1767067962278,0.00112948,123.76,123.7,2.02934052]
[1767067962474,2.02934052,123.77,123.7,2.02934052]
[1767067962675,2.02934052,123.77,123.71,3.21]
[1767067962875,0.0571735,123.75,123.73,0.05]
[1767067963180,3.32,123.74,123.67,3.21]
[1767067963377,5.34934052,123.73,123.67,3.21]
[1767067963776,3.32,123.73,123.67,3.21]
[1767067963980,0.05591301,123.71,123.67,3.21]
[1767067967184,0.05591301,123.71,123.65,3.33]
[1767067968188,3.33591301,123.71,123.65,3.33]
[1767067969091,5.36525353,123.71,123.65,3.33]
[1767067971085,3.28,123.7,123.64,9.26439185]
[1767067971284,3.33399893,123.68,123.62,3.33]
[1767067972480,3.33399893,123.68,123.64,5.35934052]
[1767067972481,0.05399893,123.68,123.64,5.35934052]
[1767067972678,0.00198437,123.67,123.64,5.35934052]
[1767067973206,2.02934052,123.65,123.61,3.33]
[1767067973489,2.02934052,123.63,123.58,3.33]
[1767067973695,0.05654533,123.62,123.59,0.05]
[1767067973988,3.28,123.66,123.59,3.38]
[1767067974192,2.02934052,123.65,123.59,0.05]
[1767067974387,2.02934052,123.63,123.59,0.05]
[1767067975094,0.05342723,123.62,123.59,0.05]
[1767067978188,3.33342723,123.62,123.59,0.05]
[1767067978390,3.33342723,123.62,123.56,3.33]
[1767067979292,3.33342723,123.62,123.58,0.0558991]
[1767067980785,3.33342723,123.62,123.58,3.4558991]
[1767067980786,0.05342723,123.62,123.58,3.4558991]
[1767067980990,0.05342723,123.62,123.59,3.4]
[1767067982394,3.19,123.64,123.59,3.4]
[1767067983490,0.06172596,123.63,123.59,3.4]
[1767067987697,3.19,123.66,123.59,3.4]
[1767067988802,0.05414708,123.64,123.61,0.05546722]
[1767067989795,0.05414708,123.64,123.61,3.45546722]
[1767067989995,3.19,123.66,123.61,3.45546722]
[1767067991001,0.05106573,123.65,123.61,3.45546722]
[1767067998698,3.41,123.7,123.63,3.32]
[1767067999805,0.05600922,123.68,123.65,0.05934178]
[1767068004306,322.2038,123.74,123.65,0.05934178]
[1767068004307,3.41,123.75,123.66,3.18481153]
[1767068004510,3.41,123.75,123.69,3.32]
[1767068004912,7.44541765,123.78,123.71,3.32]
[1767068005210,3.41,123.77,123.71,3.32]
[1767068005402,0.05462493,123.75,123.73,0.00194617]
[1767068005604,3.41,123.76,123.69,3.32]
[1767068006505,0.05122422,123.74,123.71,0.05329828]
[1767068008906,0.05122422,123.74,123.71,3.37329828]
[1767068009111,0.00122422,123.74,123.71,3.37329828]
[1767068009310,3.41,123.77,123.71,3.37329828]
[1767068010296,3.41,123.77,123.71,6.55810981]
[1767068010614,0.0524044,123.75,123.71,6.55810981]
[1767068011517,0.0524044,123.75,123.71,3.37329828]
[1767068013109,0.0524044,123.75,123.71,13.84200981]
[1767068013303,0.0524044,123.75,123.72,3.32]
[1767068017114,3.41,123.79,123.72,95.56]
[1767068017418,3.41,123.79,123.73,3.32]
[1767068018320,0.06150333,123.77,123.75,0.05413896]
[1767068019614,3.41,123.81,123.75,0.05413896]
[1767068020517,0.05621142,123.79,123.75,0.05413896]
[1767068020720,0.05621142,123.79,123.75,3.37413896]
[1767068024318,3.41,123.81,123.75,3.37413896]
[1767068024907,3.41,123.81,123.76,3.32]
[1767068025309,0.05100442,123.8,123.76,3.32]
[1767068026421,3.49100442,123.8,123.75,0.05413896]
[1767068026613,3.49100442,123.8,123.75,0.00413896]
[1767068027609,10.77020442,123.8,123.75,0.00413896]
[1767068027817,3.44,123.79,123.75,0.00413896]
[1767068028718,3.44,123.78,123.75,0.00413896]
[1767068058236,3.36100442,123.8,123.75,3.43413896]
[1767068058538,3.36100442,123.8,123.75,5.46779667]
[1767068059834,3.36100442,123.8,123.76,7.52466451]
[1767068060243,3.36100442,123.8,123.76,3.43]
[1767068069547,0.05100442,123.8,123.76,3.43]
[1767068093178,3.27100442,123.8,123.75,0.00413896]
[1767068093679,5.25365771,123.79,123.75,0.00413896]
[1767068095072,3.22,123.78,123.75,0.00413896]
[1767068099683,3.22,123.79,123.75,0.00413896]
[1767068101685,0.05100442,123.8,123.77,5.49365771]
[1767068104170,3.22,123.85,123.78,3.4]
[1767068104374,3.22,123.85,123.79,5.43365771]
[1767068105084,0.05155364,123.83,123.81,0.05445474]
[1767068105577,3.27155364,123.83,123.81,0.00445474]
[1767068118308,3.27155364,123.83,123.76,3.3]
[1767068118702,3.3,123.82,123.76,3.3]
[1767068119205,0.05630942,123.8,123.78,0.06040128]
[1767068140027,3.35630942,123.8,123.75,7.5130243]
[1767068140321,3.3,123.78,123.72,10.8130243]
[1767068141225,0.06185667,123.76,123.74,0.05175032]
[1767068155128,7.28,123.79,123.74,3.38175032]
[1767068156235,0.05866621,123.78,123.74,3.38175032]
[1767068181249,0.05866621,123.78,123.75,3.28]
[1767068186961,7.2792,123.8,123.75,3.28]
[1767068187164,5.26316538,123.81,123.76,3.28]